bitfinex-derivatives/quotes_ETHF0:USTF0_20260116
["timestamp","ask_amount","ask_price","bid_price","bid_amount"]
[1768533768060,1.22171036,3306.3,3305.2,0.00355435]
[1768533768364,1.22171036,3306.1,3305.2,0.00355435]
[1768533769478,1.22171036,3306.1,3304.1,0.23093496]
[1768533769479,1.22171036,3305.4,3304.1,0.23093496]
[1768533769767,1.22171036,3305.4,3303.8,1.22171036]
[1768533770069,1.22171036,3305.4,3303.9,0.23093496]
[1768533770469,0.1513,3305.7,3304.7,1.22171036]
[1768533776469,0.1513,3305.7,3304.5,0.23093496]
[1768533776675,0.1513,3305.7,3304.5,1.45264532]
[1768533781772,0.1513,3305.7,3304.6,0.20589166]
[1768533782775,0.1513,3305.7,3304.8,0.20589166]
[1768533802090,0.17469657,3306.0,3304.4,0.18666103]
[1768533803598,0.15131,3305.5,3304.4,0.18666103]
[1768533806903,0.15131,3305.5,3304.0,0.18032628]
[1768533807207,0.1776415,3305.6,3304.0,0.18032628]
[1768533808700,0.15132,3305.3,3304.0,0.18032628]
[1768533812111,0.15133,3305.2,3304.0,0.18032628]
[1768533812708,0.15133,3305.2,3303.9,0.00355774]
[1768533813410,0.15133,3305.2,3303.9,0.18388402]
[1768533817419,0.18072678,3306.4,3304.2,0.18032628]
[1768533817618,1.19154152,3306.3,3304.2,0.18032628]
[1768533817914,0.87090638,3306.2,3304.3,0.18032628]
[1768533818116,0.18072678,3306.4,3304.3,0.18032628]
[1768533818314,0.1513,3305.8,3304.3,0.18032628]
[1768533819918,0.1513,3305.8,3304.6,0.18032628]
[1768533824522,0.33199678,3306.4,3304.8,0.18032628]
[1768533824723,0.15435528,3306.4,3304.8,0.18032628]
[1768533825023,0.00308528,3306.4,3305.2,0.18032628]
[1768533851640,0.00308528,3306.4,3305.3,0.16447892]
[1768533853746,0.00308528,3306.4,3305.4,0.16447892]
[1768533854444,0.00308528,3306.4,3305.4,3.96818308]
[1768533854634,0.00308528,3306.4,3305.5,0.16447892]
[1768533857242,0.7807328,3307.0,3305.7,0.16447892]
[1768533858248,0.78403752,3307.0,3305.7,0.16447892]
[1768533859454,0.78403752,3307.0,3305.8,1.22052613]
[1768533861047,0.78403752,3307.0,3305.8,1.38489537]
[1768533861549,0.78403752,3307.0,3306.1,1.22052613]
[1768533867154,0.78403752,3307.0,3306.3,1.22052613]
[1768533867351,0.1639703,3307.7,3306.5,1.22052613]
[1768533867556,0.1512,3308.0,3306.6,1.22052613]
[1768533867757,2.24224023,3307.9,3306.6,1.22052613]
[1768533868059,1.37172613,3307.9,3306.6,1.22052613]
[1768533868463,1.37519498,3307.9,3306.6,1.22052613]
[1768533871862,1.37519498,3307.9,3306.4,1.22052613]
[1768533872255,0.15466885,3307.9,3306.8,1.22052613]
[1768533872451,0.00346885,3307.9,3307.0,1.22052613]
[1768533872964,0.00346885,3307.9,3306.8,1.38547534]
[1768533874865,0.00346885,3307.9,3306.8,0.16494921]
[1768533877166,1.22052613,3307.7,3306.4,0.16494921]
[1768533877363,1.22052613,3307.1,3306.3,0.00374088]
[1768533877565,0.15121,3307.7,3306.3,0.00374088]
[1768533877566,1.22052613,3307.4,3306.3,0.00374088]
[1768533879560,0.15137478,3307.6,3306.3,0.00374088]
[1768533879859,1.22052613,3307.5,3306.3,0.00374088]
[1768533880761,1.52312091,3307.5,3306.3,0.00374088]
[1768533881068,1.22052613,3306.6,3305.7,3.80370416]
[1768533881264,1.22052613,3306.6,3305.4,1.22052613]
[1768533881462,1.22052613,3306.9,3305.4,1.22052613]
[1768533882068,0.15137478,3307.0,3305.7,1.22052613]
[1768533882467,0.15124,3307.1,3305.7,1.22052613]
[1768533882869,0.15124,3307.1,3305.7,1.38547534]
[1768533883072,0.15124,3307.1,3306.0,1.22052613]
[1768533883367,0.15124,3307.1,3306.0,1.38547534]
[1768533884276,0.15124,3307.1,3306.0,0.16494921]
[1768533884770,0.15124,3307.1,3305.7,1.22052613]
[1768533887163,0.15124,3307.1,3305.7,1.38547534]
[1768533887768,0.15124,3307.1,3305.8,0.16494921]
[1768533889272,0.00346885,3307.9,3307.0,1.22052613]
[1768533889472,0.15137478,3308.4,3307.4,1.22052613]
[1768533889776,0.15117,3308.5,3307.4,1.22052613]
[1768533890573,0.30563858,3308.5,3307.0,1.22052613]
[1768533893277,1.22052613,3308.4,3307.0,1.22052613]
[1768533894181,1.22052613,3308.4,3306.9,0.16494921]
[1768533894373,1.37180324,3308.1,3306.5,0.15507658]
[1768533894574,1.37180324,3308.1,3306.6,1.22052613]
[1768533894769,1.37180324,3308.1,3306.9,1.22052613]
[1768533895883,0.15127711,3308.1,3306.9,1.22052613]
[1768533896972,0.15118,3308.3,3307.1,1.22052613]
[1768533900384,0.15118,3308.3,3307.0,1.22052613]
[1768533901190,1.22052613,3308.0,3306.5,1.37560271]
[1768533902689,1.22052613,3308.0,3306.7,1.22052613]
[1768533904389,0.15127711,3308.1,3306.7,1.22052613]
[1768533904580,1.37171613,3308.2,3306.9,1.22052613]
[1768533910594,0.15127711,3308.1,3306.3,16.55127]
[1768533910780,0.15127711,3308.1,3306.6,1.22052613]
[1768533911392,0.15127711,3308.1,3306.8,1.22052613]
[1768533911796,0.15127711,3308.1,3306.7,1.22052613]
[1768533919301,0.15127711,3308.1,3306.6,0.15507658]
[1768533922395,0.15127711,3308.1,3306.6,3.95878074]
[1768533929095,0.0030938,3308.5,3306.7,1.40345534]
[1768533929286,0.0030938,3308.5,3307.0,0.18369401]
[1768533937506,0.33267831,3308.4,3306.8,3.80370416]
[1768533937704,0.18149831,3308.3,3306.7,3.80370416]
[1768533937904,0.33268831,3308.2,3306.7,3.80370416]
[1768533938212,0.33268831,3308.2,3306.6,0.18369401]
[1768533940813,1.21976133,3307.6,3306.5,3.80370416]
[1768533941015,1.21976133,3307.6,3306.2,3.80370416]
[1768533941519,1.21976133,3307.6,3306.1,0.18369401]
[1768533944904,0.33270831,3307.8,3306.1,0.18369401]
[1768533945303,0.18149831,3307.6,3306.1,0.18369401]
[1768533949714,0.33271831,3307.6,3306.1,0.18369401]
[1768533949909,0.18149831,3307.4,3305.8,20.20370416]
[1768533950105,0.18149831,3307.4,3305.8,3.80370416]
[1768533950306,0.18149831,3307.4,3305.8,0.18369401]
[1768533955022,0.33271831,3307.4,3305.8,0.18369401]
[1768533957022,0.15123,3307.3,3305.8,0.18369401]
[1768533957217,0.35340561,3307.3,3305.8,0.18369401]
[1768533962324,0.35340561,3307.2,3305.8,0.18369401]
[1768533962514,0.20217561,3306.9,3305.4,0.2091479]
[1768533962820,0.35343561,3306.6,3305.4,0.00292452]
[1768533964220,0.20217561,3306.5,3305.4,0.00292452]
[1768533964432,0.35344561,3306.5,3305.4,0.00292452]
[1768533965315,0.20217561,3306.4,3305.4,0.00292452]
[1768533967626,0.15127,3306.5,3305.4,0.00292452]
[1768533970530,0.20217561,3306.8,3305.4,0.00292452]
[1768533970732,0.15124,3307.1,3305.4,0.2091479]
[1768533971327,0.35341561,3307.1,3305.4,0.2091479]
[1768533972435,0.35341561,3307.1,3305.5,1.42598471]
[1768533972635,0.35341561,3307.1,3305.6,0.20622338]
[1768533978732,0.20217561,3306.9,3305.4,0.00292452]
[1768533979133,0.20217561,3306.7,3305.4,0.00292452]
[1768533980630,0.35343561,3306.7,3305.4,0.00292452]
[1768533980830,0.20217561,3306.6,3305.4,0.00292452]
[1768533981832,0.20217561,3306.6,3305.5,1.2210194]
[1768533982946,1.42319501,3306.6,3305.4,0.00292452]
[1768533988340,0.20217561,3306.6,3305.4,1.22394392]
[1768533988641,0.15126,3306.7,3305.9,1.2210194]
[1768533989236,0.20615156,3307.0,3305.6,1.2210194]
[1768533989439,1.42717096,3306.9,3305.6,1.2210194]
[1768533991842,1.42717096,3306.6,3305.4,0.00292452]
[1768533996436,0.20615156,3306.6,3305.4,0.00292452]
[1768533997144,1.57841096,3307.0,3305.5,1.2210194]
[1768533998646,1.57841096,3307.0,3305.7,1.2210194]
[1768533999545,0.35739156,3307.0,3306.0,1.2210194]
[1768534003351,0.35739156,3307.0,3305.7,1.2210194]
[1768534003548,1.2210194,3306.7,3305.4,0.22156863]
[1768534003755,1.2210194,3306.7,3305.4,0.00292452]
[1768534005564,1.42717096,3306.7,3305.4,0.00292452]
[1768534005754,0.20615156,3306.6,3305.4,0.00292452]
[1768534008257,1.2210194,3306.1,3305.4,0.00292452]
[1768534008457,1.22461847,3306.1,3305.4,0.00292452]
[1768534009857,0.00359907,3306.1,3305.4,0.00292452]
[1768534012167,0.15126,3306.6,3305.6,1.2210194]
[1768534013265,0.1540736,3306.6,3305.6,1.2210194]
[1768534013655,0.1540736,3306.6,3305.4,0.00292452]
[1768534013859,0.1540736,3306.6,3305.6,1.2210194]
[1768534014265,0.0028136,3306.6,3305.6,1.2210194]
[1768534016569,0.0028136,3306.6,3305.8,1.2210194]
[1768534021970,0.0028136,3306.6,3305.5,0.21950632]
[1768534022274,0.0028136,3306.6,3305.5,1.44052572]
[1768534022474,1.223833,3306.6,3305.4,0.00292452]
[1768534024075,1.223833,3306.6,3305.4,1.22394392]
[1768534024681,0.0028136,3306.6,3305.4,1.22394392]
[1768534031580,0.0028136,3306.6,3305.4,0.00292452]
[1768534044986,0.0028136,3306.6,3305.4,0.20619989]
[1768534080304,0.0028136,3306.6,3305.4,0.00292452]
[1768534114440,0.0028136,3306.6,3305.4,0.18859941]
[1768534126941,0.0028136,3306.6,3305.4,1.40946099]
[1768534127548,0.0028136,3306.6,3305.4,0.00292452]
[1768534128751,1.22367518,3306.6,3305.4,0.00292452]
[1768534132050,0.0028136,3306.6,3305.4,0.00292452]
[1768534149562,0.0028136,3306.6,3305.7,1.22086158]
[1768534150159,0.0028136,3306.6,3305.9,1.22086158]
[1768534153964,0.0028136,3306.6,3305.7,1.22086158]
[1768534159869,0.0028136,3306.6,3305.6,1.22086158]
[1768534162273,0.0028136,3306.6,3305.4,0.19592516]
[1768534162484,1.22086158,3306.4,3305.4,0.00292452]
[1768534167074,1.22086158,3305.6,3305.1,3.80370416]
[1768534167368,0.19645377,3306.2,3304.7,3.80370416]
[1768534167778,1.41793796,3305.9,3304.5,3.80370416]
[1768534168072,1.41793796,3305.9,3304.5,3.80684735]
[1768534168381,1.41793796,3305.9,3304.5,0.00314319]
[1768534169179,0.19645377,3305.9,3304.5,0.00314319]
[1768534175582,0.19645377,3305.9,3304.5,0.18494932]
[1768534175786,0.15129,3306.0,3304.5,0.18494932]
[1768534176084,0.19645377,3306.3,3304.8,0.18180613]
[1768534180577,0.15127,3306.4,3304.8,0.18180613]
[1768534180979,0.34772377,3306.4,3304.8,0.18180613]
[1768534181379,0.19645377,3306.3,3304.8,0.18180613]
[1768534181789,0.34772377,3306.3,3304.5,0.00314319]
[1768534181982,0.19645377,3306.2,3304.5,0.00314319]
[1768534183290,0.19645377,3306.1,3304.5,0.00314319]
[1768534183685,0.19645377,3305.9,3304.5,0.00314319]
[1768534183891,0.19645377,3305.6,3304.5,0.00314319]
[1768534184289,0.19645377,3305.5,3304.5,0.00314319]
[1768534186294,0.19645377,3305.5,3303.7,0.15139]
[1768534187496,0.19645377,3305.5,3303.7,0.15420241]
[1768534188894,0.19645377,3305.5,3303.7,0.33600854]
[1768534194705,0.19645377,3305.5,3303.8,0.19690405]
[1768534201405,0.34776377,3305.5,3303.8,0.19690405]
[1768534202005,0.15132,3305.4,3303.8,0.19690405]
[1768534202313,0.3486736,3305.4,3303.8,0.19690405]
[1768534207107,0.15132,3305.3,3303.7,3.80651657]
[1768534207317,0.1973536,3304.8,3303.7,3.80651657]
[1768534207511,0.1973536,3304.7,3303.7,0.00281241]
[1768534208209,0.3487036,3304.7,3303.7,0.00281241]
[1768534208406,0.1973536,3304.6,3303.7,0.00281241]
[1768534209915,0.1973536,3304.4,3302.8,3.80370416]
[1768534210317,0.1973536,3304.4,3302.7,3.80370416]
[1768534210912,0.1973536,3304.4,3302.7,3.80655797]
[1768534212715,0.1973536,3304.4,3302.7,0.00285381]
[1768534213121,0.1973536,3304.3,3302.7,0.00285381]
[1768534213322,0.1973536,3304.1,3302.7,0.00285381]
[1768534213525,0.1973536,3304.0,3302.7,0.00285381]
[1768534215319,0.3487336,3304.0,3302.7,0.00285381]
[1768534215625,0.1973536,3303.9,3302.7,0.00285381]
[1768534216221,0.00302304,3304.1,3302.7,0.19975786]
[1768534216421,0.00302304,3304.1,3302.9,0.19690405]
[1768534220635,0.00302304,3304.1,3302.7,0.00285381]
[1768534221428,0.18275084,3304.1,3302.7,0.00285381]
[1768534221831,0.00302304,3304.1,3302.7,0.18921567]
[1768534227335,0.00302304,3304.1,3302.7,1.41195722]
[1768534230333,0.00302304,3304.1,3302.9,1.22274155]
[1768534236644,0.00302304,3304.1,3303.0,1.22274155]
[1768534243538,0.00302304,3304.1,3302.7,3.99291983]
[1768534243742,0.00302304,3304.1,3302.8,1.22274155]
[1768534249855,0.00302304,3304.1,3302.8,1.4190148]
[1768534250447,0.00302304,3304.1,3303.0,1.22274155]
[1768534252365,0.00302304,3304.1,3302.9,1.22274155]
[1768534253360,1.22274155,3304.0,3302.8,3.80370416]
[1768534253565,1.37412155,3304.0,3302.7,0.00285381]
[1768534253966,1.56462217,3304.0,3302.7,0.00285381]
[1768534254466,1.22274155,3303.7,3302.7,0.00285381]
[1768534257553,0.15139,3303.8,3302.7,0.00285381]
[1768534259167,1.22274155,3303.7,3302.7,0.00285381]
[1768534260974,1.22274155,3303.5,3302.1,3.80370416]
[1768534261164,1.22274155,3303.5,3302.1,5.02644571]
[1768534261371,1.22274155,3303.5,3302.1,1.22274155]
[1768534261571,1.22274155,3303.5,3302.1,1.40226]
[1768534261973,1.22274155,3303.5,3302.2,1.22274155]
[1768534267776,1.22274155,3303.5,3302.2,1.22274155]
[1768534269178,0.1514,3303.6,3302.4,1.22274155]
[1768534269380,0.00302304,3304.1,3302.1,0.00331113]
[1768534269381,1.22274155,3303.1,3302.1,0.00331113]
[1768534269672,1.22274155,3302.9,3302.1,0.00331113]
[1768534270179,1.22274155,3303.1,3302.1,0.00331113]
[1768534270480,1.22274155,3302.9,3302.1,0.00331113]
[1768534271077,1.22274155,3302.5,3301.3,3.80370416]
[1768534271484,1.22274155,3302.5,3301.2,1.22274155]
[1768534271973,1.22274155,3302.5,3301.2,1.2253725]
[1768534272175,0.15145,3302.6,3301.7,1.22274155]
[1768534272372,0.15145,3302.6,3301.6,1.22274155]
[1768534272777,0.15145,3302.6,3301.4,1.22274155]
[1768534272978,0.34195062,3302.6,3301.2,1.2253725]
[1768534273580,1.22274155,3302.5,3301.2,0.00263095]
[1768534273774,0.34195062,3302.6,3301.3,1.22274155]
[1768534274782,0.34195062,3302.6,3301.5,1.22274155]
[1768534274977,0.15145,3302.6,3301.5,1.22274155]
[1768534275982,0.15145,3302.6,3301.2,0.1821494]
[1768534276182,0.15145,3302.6,3301.5,1.22274155]
[1768534278286,0.15145,3302.6,3301.3,1.22274155]
[1768534278484,1.56469217,3302.6,3301.2,0.00263095]
[1768534279182,0.34195062,3302.6,3301.2,0.00263095]
[1768534279380,1.22274155,3302.2,3301.2,0.00263095]
[1768534279978,1.22274155,3301.9,3300.9,1.23125638]
[1768534280186,1.22274155,3301.7,3300.9,1.23125638]
[1768534280376,1.41324217,3302.1,3300.9,1.23125638]
[1768534280883,1.37420155,3302.2,3300.9,1.23125638]
[1768534281081,0.15475034,3302.2,3301.3,1.22274155]
[1768534281476,0.15475034,3302.2,3300.9,1.39729941]
[1768534281681,0.15475034,3302.2,3300.9,2.62004096]
[1768534282181,1.22274155,3302.1,3300.9,1.23411522]
[1768534282382,1.37422155,3301.9,3300.9,1.23411522]
[1768534282886,0.15148,3301.9,3300.9,1.23411522]
[1768534290696,0.17614749,3301.8,3300.9,1.23411522]
[1768534303291,0.15148,3301.9,3300.9,1.23411522]
[1768534306503,0.15148,3301.8,3300.9,1.23411522]
[1768534308509,0.15149,3301.7,3300.9,1.23411522]
[1768534308698,0.15149,3301.7,3300.9,0.95032537]
[1768534308899,0.15149,3301.6,3300.9,0.95032537]
[1768534318011,0.17614749,3301.9,3300.9,0.95032537]
[1768534318216,1.22415098,3301.6,3300.3,0.15294201]
[1768534318513,0.1515,3301.4,3300.3,0.15294201]
[1768534319201,0.1515,3301.4,3300.3,0.15678175]
[1768534321910,0.1515,3301.3,3300.3,0.00383974]
[1768534322717,0.15151,3301.2,3300.3,0.00383974]
[1768534324811,0.15399399,3301.5,3300.3,0.00383974]
[1768534325113,0.15153,3300.7,3299.4,3.80370416]
[1768534325319,0.15399399,3300.7,3299.4,3.80370416]
[1768534325618,1.22415098,3300.8,3299.1,0.15294201]
[1768534325813,1.22415098,3301.0,3299.1,0.15294201]
[1768534326122,0.15152,3301.0,3299.2,0.15294201]
[1768534327708,0.15152,3300.9,3299.2,0.15294201]
[1768534328305,0.15152,3300.9,3299.5,1.22415098]
[1768534328518,0.1515,3301.5,3299.6,0.15294201]
[1768534329925,0.1515,3301.4,3299.6,0.15294201]
[1768534333719,0.15151,3301.3,3299.6,0.15294201]
[1768534334315,0.15151,3301.2,3299.6,0.15294201]
[1768534334520,0.15399399,3301.4,3299.6,0.15294201]
[1768534335618,0.15152,3301.0,3299.6,0.15294201]
[1768534340327,0.30551399,3301.0,3299.3,3.95529416]
[1768534340531,0.30551399,3301.0,3299.3,4.10823617]
[1768534340722,0.30551399,3301.0,3299.4,0.15294201]
[1768534343932,0.15153,3300.8,3299.4,0.15294201]
[1768534345833,0.15153,3300.8,3299.1,0.15337343]
[1768534346229,0.15153,3300.7,3299.1,0.15337343]
[1768534347935,0.15153,3300.7,3299.1,3.95707759]
[1768534348140,0.15153,3300.7,3299.4,0.14953408]
[1768534349338,0.15153,3300.7,3299.8,1.22487046]
[1768534350135,0.1515,3301.3,3300.2,1.22487046]
[1768534350333,0.1515,3301.3,3300.4,1.22487046]
[1768534350634,0.1515,3301.3,3300.2,1.22487046]
[1768534351036,0.1515,3301.3,3300.2,1.37440454]
[1768534355327,0.1515,3301.3,3300.2,0.14953408]
[1768534355533,1.22487046,3301.2,3299.8,1.37440454]
[1768534357237,1.22487046,3301.2,3299.8,0.14953408]
[1768534358042,0.15148,3301.8,3300.5,1.22487046]
[1768534358345,1.22487046,3301.7,3300.3,1.37440454]
[1768534359048,0.15148,3301.8,3300.3,1.37440454]
[1768534359349,1.37635046,3301.8,3300.3,1.37440454]
[1768534360247,1.22487046,3301.0,3299.9,3.80370416]
[1768534360648,1.22487046,3301.0,3299.7,0.14953408]
[1768534362143,1.22487046,3301.0,3299.7,1.37440454]
[1768534362345,1.22487046,3301.0,3299.7,0.14953408]
[1768534362639,1.22487046,3301.0,3299.7,1.37440454]
[1768534363551,1.37074637,3300.6,3299.6,3.80370416]
[1768534363849,1.22487046,3300.4,3299.1,9.24030329]
[1768534364252,1.22487046,3300.4,3299.1,3.80644021]
[1768534364751,1.22487046,3300.4,3299.1,0.00273605]
[1768534365453,0.14587591,3300.6,3299.1,0.00273605]
[1768534365454,1.22487046,3300.2,3299.1,0.00273605]
[1768534366954,0.29741591,3300.6,3299.1,0.00273605]
[1768534366955,1.22487046,3300.3,3299.1,0.00273605]
[1768534369048,1.22487046,3300.1,3299.1,0.00273605]
[1768534370752,1.22487046,3299.9,3299.1,0.00273605]
[1768534372256,1.22487046,3299.7,3299.1,0.00273605]
[1768534372554,1.22700653,3299.7,3299.1,0.00273605]
[1768534372751,1.22700653,3299.7,3298.3,3.80370416]
[1768534372957,1.22700653,3299.7,3298.2,5.02857462]
[1768534373341,1.22700653,3299.7,3298.2,3.95520289]
[1768534373554,0.00213607,3299.7,3298.2,5.18007335]
[1768534373757,1.22700653,3299.7,3298.2,1.38020788]
[1768534374263,1.22700653,3299.7,3298.4,1.22487046]
[1768534374663,1.22700653,3299.7,3298.2,0.15533742]
[1768534374862,1.22700653,3299.7,3298.4,1.22487046]
[1768534375658,1.22700653,3299.7,3298.2,1.38020788]
[1768534375956,1.22487046,3299.5,3298.2,0.00383869]
[1768534376259,1.22487046,3299.6,3298.4,0.15149873]
[1768534377060,1.22700653,3299.7,3298.4,0.15149873]
[1768534378164,1.22487046,3299.5,3298.2,0.00383869]
[1768534378358,0.15472997,3299.5,3298.2,0.00383869]
[1768534378662,1.22487046,3299.3,3298.2,0.00383869]
[1768534380165,0.15472997,3299.5,3298.2,0.00383869]
[1768534380663,1.37960043,3299.5,3298.2,0.00383869]
[1768534382058,1.22487046,3299.3,3298.2,0.00383869]
[1768534382269,1.22487046,3298.5,3297.6,3.80370416]
[1768534382466,1.22487046,3298.5,3297.2,8.46586308]
[1768534382467,0.15472997,3297.8,3296.0,3.80370416]
[1768534382770,0.15472997,3297.8,3296.4,1.22487046]
[1768534382968,0.15164,3298.4,3296.9,1.22487046]
[1768534383173,1.22487046,3298.7,3297.2,1.37636919]
[1768534383375,1.22487046,3298.9,3297.4,1.22487046]
[1768534383570,1.22487046,3298.7,3297.4,1.22487046]
[1768534384178,1.22487046,3298.9,3297.2,0.15431802]
[1768534384381,0.15472997,3299.4,3297.9,1.22487046]
[1768534384677,0.00213607,3299.7,3297.9,1.22487046]
[1768534384678,1.22487046,3299.1,3297.9,0.15149873]
[1768534384876,1.22487046,3298.9,3297.5,1.22487046]
[1768534385278,0.15472997,3299.1,3297.3,0.15169]
[1768534386175,0.15159,3299.4,3297.4,0.15149873]
[1768534388275,0.30631997,3299.4,3297.4,0.15149873]
[1768534388481,0.15472997,3299.3,3297.4,0.15149873]
[1768534390279,0.15159,3299.4,3297.5,0.15149873]
[1768534390483,0.15686604,3299.7,3297.7,0.15149873]
[1768534390680,0.00213607,3299.7,3297.8,0.15149873]
[1768534390881,0.00213607,3299.7,3298.1,0.15149873]
[1768534391582,0.00213607,3299.7,3298.2,0.15149873]
[1768534391884,0.00213607,3299.7,3298.3,0.15149873]
[1768534392286,0.00213607,3299.7,3298.3,0.30313873]
[1768534392482,0.00213607,3299.7,3298.5,0.15149873]
[1768534392680,0.15472997,3301.2,3299.4,0.15149873]
[1768534393685,0.15735773,3301.2,3299.4,0.15149873]
[1768534395182,0.00262776,3301.2,3299.4,0.15149873]
[1768534397293,0.00262776,3301.2,3299.4,0.30308873]
[1768534397491,0.00262776,3301.2,3299.7,0.15149873]
[1768534397691,0.00262776,3301.2,3299.7,0.15381393]
[1768534397887,0.00262776,3301.2,3299.9,0.15149873]
[1768534401190,0.15472997,3301.7,3299.9,0.15149873]
[1768534402290,0.15772488,3301.7,3299.9,0.15149873]
[1768534403795,0.15772488,3301.7,3300.0,3.032]
[1768534405296,0.15772488,3301.7,3300.4,1.22436783]
[1768534407414,0.00299491,3301.7,3300.6,1.22436783]
[1768534409291,0.00299491,3301.7,3300.2,1.37329661]
[1768534409600,0.00299491,3301.7,3300.3,0.14904874]
[1768534417109,0.13934721,3301.6,3299.7,0.0023152]
[1768534421507,0.13934721,3301.6,3299.7,3.80601936]
[1768534421700,0.29083721,3301.6,3299.7,3.80601936]
[1768534421900,0.13934721,3301.5,3299.7,0.0023152]
[1768534426806,0.13934721,3301.2,3299.7,0.0023152]
[1768534427212,0.13934721,3300.8,3299.7,0.0023152]
[1768534429916,0.13934721,3300.8,3299.1,3.80370416]
[1768534430316,0.13934721,3300.8,3299.0,3.80370416]
[1768534431009,0.13934721,3300.8,3299.0,3.80644592]
[1768534431719,0.13934721,3300.8,3299.0,0.00274176]
[1768534434817,0.13770317,3301.2,3299.3,0.1385968]
[1768534437524,0.28921317,3301.2,3299.3,0.1385968]
[1768534437724,0.13770317,3301.1,3299.3,0.1385968]
[1768534439926,0.13770317,3301.1,3299.5,1.36284467]
[1768534440126,0.13770317,3301.1,3299.6,0.1385968]
[1768534442727,0.15151,3301.2,3299.6,0.1385968]
[1768534443630,0.13770317,3301.5,3299.8,1.36284467]
[1768534445933,0.13770317,3301.5,3299.9,0.1385968]
[1768534450135,0.13770317,3301.5,3299.9,3.94230096]
[1768534452136,0.13770317,3301.5,3299.9,0.1385968]
[1768534456535,0.13770317,3301.2,3299.7,3.80370416]
[1768534456741,0.13770317,3301.2,3299.6,3.80370416]
[1768534457039,0.13770317,3301.2,3299.3,3.80370416]
[1768534457539,0.28921317,3301.2,3299.3,3.80370416]
[1768534457835,0.13770317,3301.1,3299.3,3.80370416]
[1768534459436,0.13770317,3301.1,3299.2,3.80370416]
[1768534461027,0.14108539,3301.6,3300.1,0.13845914]
[1768534462840,0.00299491,3301.7,3300.4,1.36270701]
[1768534463026,0.00299491,3301.7,3300.0,1.36270701]
[1768534463231,0.00299491,3301.7,3300.1,3.80370416]
[1768534464335,0.00299491,3301.7,3300.0,5.16641117]
[1768534464635,0.1440803,3301.7,3300.0,5.16641117]
[1768534465143,0.1440803,3301.7,3300.0,3.9421633]
[1768534467641,0.1440803,3301.7,3300.0,3.80370416]
[1768534467943,0.1440803,3301.7,3299.9,3.80370416]
[1768534468941,0.1440803,3301.7,3299.8,3.95527416]
[1768534469445,1.22487985,3301.2,3299.8,5.32468282]
[1768534470141,1.22487985,3301.2,3299.8,4.09980297]
[1768534470442,1.22487985,3300.9,3299.8,3.80370416]
[1768534470836,1.22487985,3300.9,3299.7,3.80370416]
[1768534471143,1.22487985,3300.9,3299.7,5.02858401]
[1768534472839,1.22487985,3300.9,3299.8,0.14452881]
[1768534475347,1.22487985,3301.2,3299.8,0.14452881]
[1768534478839,1.22487985,3300.9,3299.8,3.94823297]
[1768534479647,1.22487985,3301.2,3299.8,3.94823297]
[1768534482148,1.22487985,3300.9,3299.8,3.94823297]
[1768534485746,1.22487985,3300.9,3299.8,3.80370416]
[1768534489840,1.22487985,3300.6,3299.8,3.80370416]
[1768534490245,1.22487985,3300.6,3299.9,3.80370416]
[1768534492356,0.14364171,3301.1,3299.9,3.80370416]
[1768534492554,1.22487985,3300.7,3299.9,3.80370416]
[1768534499760,1.22487985,3300.9,3299.9,3.80370416]
[1768534499960,1.22487985,3301.0,3299.9,3.80370416]
[1768534500357,1.22487985,3301.0,3300.0,3.80370416]
[1768534501064,1.22487985,3301.2,3300.0,3.80370416]
[1768534502064,1.22487985,3300.9,3300.0,3.80370416]
[1768534502458,1.22487985,3300.3,3299.9,3.80370416]
[1768534502658,1.22487985,3300.3,3299.5,5.43386308]
[1768534503361,1.22487985,3300.3,3299.3,0.14278055]
[1768534503970,1.22487985,3300.6,3299.3,0.14278055]
[1768534505262,0.00299491,3301.7,3299.3,0.14278055]
[1768534505263,0.13329755,3301.4,3300.0,1.22487985]
[1768534506267,0.13329755,3301.4,3299.9,0.14278055]
[1768534507069,1.22487985,3301.2,3299.9,0.14278055]
[1768534507266,0.13329755,3301.4,3299.9,0.14278055]
[1768534507569,0.13329755,3301.4,3300.0,1.22487985]
[1768534508170,1.22487985,3301.2,3299.9,0.14278055]
[1768534511974,0.13329755,3301.4,3299.9,0.14278055]
[1768534512270,1.22487985,3301.3,3299.9,0.14278055]
[1768534512574,1.22487985,3301.3,3299.9,3.95796145]
[1768534514271,1.22487985,3301.5,3300.1,0.14278055]
[1768534517176,0.13329755,3301.6,3300.1,0.14278055]
[1768534517370,1.22487985,3301.5,3300.1,0.14278055]
[1768534518274,1.3581774,3301.5,3300.1,0.14278055]
[1768534519670,1.22487985,3301.2,3300.1,0.14278055]
[1768534519867,1.22487985,3301.2,3300.0,1.22487985]
[1768534526080,1.22487985,3301.2,3299.9,3.8151809]
[1768534526278,1.22487985,3300.2,3299.5,5.43386308]
[1768534526583,1.22487985,3300.7,3299.5,5.43386308]
[1768534526782,1.37083817,3300.9,3299.5,1.22487985]
[1768534528683,0.14595832,3300.8,3299.5,1.22487985]
[1768534528882,0.14595832,3300.8,3299.3,1.22487985]
[1768534529071,1.37083817,3300.8,3299.3,1.22487985]
[1768534530384,0.14595832,3300.8,3299.3,1.22487985]
[1768534531386,0.14595832,3300.8,3299.1,0.29441828]
[1768534534291,0.14595832,3300.8,3299.1,4.10566284]
[1768534535584,0.14595832,3300.8,3299.1,3.96284456]
[1768534536185,0.14595832,3300.8,3299.1,4.10566284]
[1768534536488,0.14595832,3300.8,3299.2,0.14281828]
[1768534539289,1.37676005,3301.3,3299.2,0.14281828]
[1768534539490,0.14595832,3301.2,3299.2,0.14281828]
[1768534539992,0.14595832,3301.2,3299.3,0.14281828]
[1768534546296,0.14595832,3301.0,3299.3,0.14281828]
[1768534548002,0.14595832,3301.0,3299.2,0.1516]
[1768534550391,0.14595832,3301.0,3299.2,0.29441828]
[1768534551587,0.14595832,3301.0,3299.2,4.10566284]
[1768534555395,0.14595832,3301.0,3299.3,3.81124456]
[1768534555607,0.28693719,3301.4,3299.5,0.14530099]
[1768534555799,0.91561406,3301.3,3299.5,0.14530099]
[1768534555999,0.91561406,3301.2,3299.5,0.14530099]
[1768534556200,0.28693719,3301.4,3299.5,0.14530099]
[1768534556400,1.05108448,3301.3,3299.5,0.14530099]
[1768534556603,0.13543719,3301.3,3299.5,3.95654555]
[1768534556901,0.13543719,3301.3,3299.6,0.14530099]
[1768534558106,0.13543719,3301.0,3299.5,3.81124456]
[1768534558307,0.13543719,3301.0,3299.4,3.96283456]
[1768534558699,0.13543719,3301.0,3299.4,0.15159]
[1768534565813,0.13543719,3301.0,3299.4,0.29689099]
[1768534566109,0.13543719,3301.0,3299.5,0.14530099]
[1768534567109,0.28693719,3301.4,3299.6,0.14530099]
[1768534567418,0.91550846,3301.3,3299.6,0.14530099]
[1768534567615,0.28693719,3301.4,3299.6,0.14530099]
[1768534567913,0.91546161,3301.3,3299.6,0.14530099]
[1768534568114,0.28693719,3301.4,3299.6,0.14530099]
[1768534568316,0.91546145,3301.3,3299.6,0.14530099]
[1768534568512,0.28693719,3301.4,3299.6,0.14530099]